Workbook

Sheet Cover
A3: Navigator
C5: =Client_Name -> SumProduct Pty Limited
C6: =Model_Name -> SP Working Capital Adjustments.xlsm
C14: Primary Developer: Liam Bastick
C16: General Cover Notes:
C17: Modelling working capital adjustments in Excel.
C21: Any queries, please e-mail: | G21: liam.bastick@sumproduct.com
C22: Website: | G22: www.sumproduct.com

Sheet Navigator
A1: Navigator
A2: =Model_Name -> SP Working Capital Adjustments.xlsm
A3: Navigator
B7: 1 | C7: Table of Contents
F9: Cover
F10: Style Guide
F11: Model Parameters
F12: Simple Example
F13: Monthly Calcs Example
F14: Second Monthly Example

Sheet Style Guide
A1: =IF(ISERROR(RIGHT(CELL("filename",A1),LEN(CELL("filename",A1))-FIND("]",CELL("filename",A1)))), "", RIGHT(CELL("filename",A1),LEN(CELL("filename",A1))-FIND("]",CELL("filename",A1)))) -> Style Guide
A2: =Model_Name -> SP Working Capital Adjustments.xlsm
A3: Navigator
B6: =MAX($B$5:$B5)+1 -> 1 | C6: Formatting of Headers / Dividers
C8: Description | I8: Display | K8: Style Name
C10: Sheet Title | I10: =C10 -> Sheet Title | K10: Sheet Title
C11: Model Name | I11: =C11 -> Model Name | K11: Model Name
C13: Header 1 | I13: =C13 -> Header 1 | K13: Header 1
C14: Header 2 | I14: =C14 -> Header 2 | K14: Header 2
C15: Header 3 | I15: =C15 -> Header 3 | K15: Header 3
C16: Header 4 | I16: =C16 -> Header 4 | K16: Header 4
C18: Notes | I18: =C18 -> Notes | K18: Notes
C20: Table Heading | I20: =C20 -> Table Heading | K20: Table Heading
B23: =MAX($B$5:$B22)+1 -> 2 | C23: Individual Cell Styles
C25: Description | I25: Display | K25: Style Name
C27: Assumption | I27: Assumption | K27: =C27 -> Assumption
C29: Constraint | I29: =C29 -> Constraint | K29: =C29 -> Constraint
C31: Empty | K31: =C31 -> Empty
C33: Error Check | I33: 0 | K33: =C33 -> Error Check
C35: Hyperlink | I35: Hyperlink | K35: =C35 -> Hyperlink
C37: Internal Reference | I37: Example | K37: =C37 -> Internal Reference
C39: Line Calculation | I39: 77 | K39: Line Calc
C41: Line Total | I41: =I39 -> 77 | K41: =C41 -> Line Total
C43: Parameter | I43: 365 | K43: =C43 -> Parameter
C45: Range Name Description | I45: Not_Named | K45: =C45 -> Range Name Description
C47: Row Reference | I47: =ROW(C47) -> 47 | K47: Row Ref
C49: Row Summary | I49: =I41 -> 77 | K49: =C49 -> Row Summary
C51: Units | I51: A$ | K51: =C51 -> Units
C53: WIP | K53: =C53 -> WIP
B56: =MAX($B$5:$B55)+1 -> 3 | C56: Numerical Styles
C58: Description | I58: Display | K58: Style Name
C60: Comma | I60: 123456.789 | K60: =C60 -> Comma
C62: Comma [0] | I62: -123456.789 | K62: Comma [0]
C64: Currency | I64: 123456.789 | K64: Currency
C66: Currency [0] | I66: 123456.789 | K66: Currency [0]
C68: Date | I68: =TODAY() -> 2020-04-02 | K68: =C68 -> Date
C70: Date Heading | I70: =TODAY() -> 2020-04-02 | K70: =C70 -> Date Heading
C72: Numbers 0 | I72: -123456.789 | K72: =C72 -> Numbers 0
C74: Percent | I74: 0.5 | K74: =C74 -> Percent

Sheet Model Parameters
A1: =IF(ISERROR(RIGHT(CELL("filename",A1),LEN(CELL("filename",A1))-FIND("]",CELL("filename",A1)))), "", RIGHT(CELL("filename",A1),LEN(CELL("filename",A1))-FIND("]",CELL("filename",A1)))) -> Model Parameters
A2: =Model_Name -> SP Working Capital Adjustments.xlsm
A3: Navigator
B6: =MAX($B$5:$B5)+1 -> 1 | C6: General
C8: Key Inputs
E10: General
E11: Model Name | G11: =IF(ISERROR(OR(FIND("[",CELL("filename",A1)),FIND("]",CELL("filename",A1)))),"",MID(CELL("filename",A1),FIND("[",CELL("filename",A1))+1,FIND("]",CELL("filename",A1))-FIND("[",CELL("filename",A1))-1)) -> SP Working Capital Adjustments.xlsm
E12: Client Name | G12: SumProduct Pty Limited
B15: =MAX($B$5:$B14)+1 -> 2 | C15: General Range Names
C17: Technical Assumptions
E19: Days in Year | G19: 365
E20: Months in Month | G20: 1
E21: Months in Quarter | G21: 3
E22: Months in Half Yr | G22: 6
E23: Months in Year | G23: 12
E24: Quarters in Year | G24: 4
E26: Rounding Accuracy | G26: 5
E28: Very Large Number | G28: 1e+99
E29: Very Small Number | G29: 1e-08
E31: Thousand | G31: 1000

Sheet Simple Example
A1: =IF(ISERROR(RIGHT(CELL("filename",A1),LEN(CELL("filename",A1))-FIND("]",CELL("filename",A1)))), "", RIGHT(CELL("filename",A1),LEN(CELL("filename",A1))-FIND("]",CELL("filename",A1)))) -> Simple Example
A2: =Model_Name -> SP Working Capital Adjustments.xlsm
A3: Navigator
B6: =MAX($B$5:$B5)+1 -> 1 | C6: Simple Example
C8: Heading
D10: =C6 -> Simple Example
F12: This assumes that the number of days in the period exceeds the days receivable.
E14: Assumptions
F16: Type of Example | I16: Debtor
F18: ="Days "&IF($G$13="Creditor","Payable","Receivable") -> Days Receivable | I18: 90
F20: =IF($G$13="Creditor","Costs","Sales")&" in Period" -> Sales in Period | I20: 1000
F22: Days in Year | I22: 365
E26: Control Account
F28: ="Opening "&PROPER($I$16)&"s" -> Opening Debtors | I28: 0 | K28: Prior BS
F29: =F20 -> Sales in Period | I29: =I20 -> 1000 | K29: IS
F30: ="Cash "&IF($I$16="Creditor","Payments","Receipts") -> Cash Receipts | I30: =I31-SUM(I28:I29) -> -753.4246575 | J30: =-I30 -> 753.4246575 | K30: CFS
F31: ="Closing "&PROPER($I$16)&"s" -> Closing Debtors | I31: =IF(Days_in_Year,$I$18/Days_in_Year*I29) -> 246.5753425 | K31: Current BS
E34: Chart Data
I36: =Days_in_Year -> 365 | J36: 0.1 | L36: 0
F37: =F29 -> Sales in Period | I37: =Days_in_Year -> 365
I38: =Days_in_Year -> 365 | J38: 0.1 | L38: 0
F39: =F30 -> Cash Receipts | I39: =IF(I29,I31/I29*Days_in_Year,) -> 90 | J39: =Days_in_Year-I39 -> 275 | L39: =I39 -> 90
I40: =Days_in_Year -> 365 | J40: 0.1 | L40: 0
I42: 0 | J42: 3
I43: =I39 -> 90 | J43: 2
I45: =Days_in_Year/4 -> 91.25 | J45: 3
I46: =I43+I45 -> 181.25 | J46: 2
I48: =Days_in_Year/2 -> 182.5 | J48: 3
I49: =I48+I43 -> 272.5 | J49: 2
I51: =I45+I48 -> 273.75 | J51: 3
I52: =I51+I43 -> 363.75 | J52: 2
I54: =Days_in_Year -> 365 | J54: 3
I55: =I54+I43 -> 455 | J55: 2

Sheet Monthly Calcs Example
A1: =IF(ISERROR(RIGHT(CELL("filename",A1),LEN(CELL("filename",A1))-FIND("]",CELL("filename",A1)))), "", RIGHT(CELL("filename",A1),LEN(CELL("filename",A1))-FIND("]",CELL("filename",A1)))) -> Monthly Calcs Example
A2: =Model_Name -> SP Working Capital Adjustments.xlsm
A3: Navigator
B6: =MAX($B$5:$B5)+1 -> 1 | C6: Monthly Capital Adjustments
C8: =C6 -> Monthly Capital Adjustments
D10: Assumptions
E12: Days in an Average Month
F14: Required for calculations | I14: 30 | J14: days
E17: Days Receivable
K18: Complete Mths | L18: Partial Mth
F19: ='Simple Example'!F18 -> Days Receivable | H19: 75 | K19: =IF(Average_Days_in_Month,INT(H19/Average_Days_in_Month),) -> 2 | L19: =IF(Average_Days_in_Month,MOD(H19,Average_Days_in_Month)/Average_Days_in_Month,) -> 0.5
D22: Calculations
F24: Month Number | K24: =N(J24)+1 -> 1 | L24: =N(K24)+1 -> 2 | M24: 3 | N24: 4 | O24: 5 | P24: 6 | Q24: 7 | R24: 8 | S24: 9 | T24: 10 | U24: =N(T24)+1 -> 11 | V24: 12
F26: ='Simple Example'!F28 -> Opening Debtors | K26: =IF(K$24=1,,J29) -> 0 | L26: 100 | M26: 300 | N26: 550 | O26: 800 | P26: 1050 | Q26: 1300 | R26: 1550 | S26: 1800 | T26: 2050 | U26: 2300 | V26: 2550 | X26: ='Simple Example'!K28 -> Prior BS
F27: ='Simple Example'!F29 -> Sales in Period | K27: 100 | L27: 200 | M27: 300 | N27: 400 | O27: 500 | P27: 600 | Q27: 700 | R27: 800 | S27: 900 | T27: 1000 | U27: 1100 | V27: 1200 | X27: ='Simple Example'!K29 -> IS
F28: ='Simple Example'!F30 -> Cash Receipts | K28: =K29-SUM(K26:K27) -> 0 | L28: =L29-SUM(L26:L27) -> 0 | M28: -50 | N28: -150 | O28: -250 | P28: -350 | Q28: -450 | R28: -550 | S28: -650 | T28: -750 | U28: -850 | V28: -950 | X28: ='Simple Example'!K30 -> CFS
F29: ='Simple Example'!F31 -> Closing Debtors | K29: =IF($K$19,SUM(OFFSET(K27,,,1,-MIN($K$19,K$24))),)+IF(K$24-$K$19<=0,,OFFSET(K27,,-$K$19)*$L$19) -> 100 | L29: 300 | M29: 550 | N29: 800 | O29: 1050 | P29: 1300 | Q29: 1550 | R29: 1800 | S29: 2050 | T29: 2300 | U29: 2550 | V29: 2800 | X29: ='Simple Example'!K31 -> Current BS

Sheet Second Monthly Example
A1: =IF(ISERROR(RIGHT(CELL("filename",A1),LEN(CELL("filename",A1))-FIND("]",CELL("filename",A1)))), "", RIGHT(CELL("filename",A1),LEN(CELL("filename",A1))-FIND("]",CELL("filename",A1)))) -> Second Monthly Example
A2: =Model_Name -> SP Working Capital Adjustments.xlsm
A3: Navigator
B6: =MAX($B$5:$B5)+1 -> 1 | C6: More Sophisticated Monthly Example
C8: Assumptions
D10: Assumptions
E12: Month Number | J12: =N(I12)+1 -> 1 | K12: =N(J12)+1 -> 2 | L12: 3 | M12: 4 | N12: 5 | O12: 6 | P12: 7 | Q12: 8 | R12: 9 | S12: 10 | T12: =N(S12)+1 -> 11 | U12: 12
E14: Forecast Sales Revenue | J14: 100 | K14: 200 | L14: 300 | M14: 400 | N14: 500 | O14: 600 | P14: 700 | Q14: 800 | R14: 900 | S14: 1000 | T14: 1100 | U14: 1200
E16: Cash Receipt Profile | J16: 0.4 | K16: 0.25 | L16: 0.15 | M16: 0.1 | N16: 0.05
E18: Bad Debt | G18: =MAX(1-SUM(J16:U16),) -> 0.05
E19: Month Written Off | G19: 6
E21: Amount Written Off | J21: =IF(J$12-$G$19<0,,OFFSET(J$14,,1-$G$19))*$G$18 -> 0 | K21: =IF(K$12-$G$19<0,,OFFSET(K$14,,1-$G$19))*$G$18 -> 0 | L21: 0 | M21: 0 | N21: 0 | O21: 5 | P21: 10 | Q21: 15 | R21: 20 | S21: 25 | T21: 30 | U21: 35
C24: Calculations
D26: Simple Grid Method
E28: =E12 -> Month Number | J28: =J12 -> 1 | K28: =K12 -> 2 | L28: 3 | M28: 4 | N28: 5 | O28: 6 | P28: 7 | Q28: 8 | R28: 9 | S28: 10 | T28: 11 | U28: 12
F30: =N(F29)+1 -> 1 | G30: =OFFSET($I$14,,$F30) -> 100 | J30: =IF(J$28-$F30>=0,OFFSET(J$16,,1-$F30),)*$G30 -> 40 | K30: =IF(K$28-$F30>=0,OFFSET(K$16,,1-$F30),)*$G30 -> 25 | L30: 15 | M30: 10 | N30: 5 | O30: 0 | P30: 0 | Q30: 0 | R30: 0 | S30: 0 | T30: 0 | U30: 0
F31: =N(F30)+1 -> 2 | G31: =OFFSET($I$14,,$F31) -> 200 | J31: =IF(J$28-$F31>=0,OFFSET(J$16,,1-$F31),)*$G31 -> 0 | K31: 80 | L31: 50 | M31: 30 | N31: 20 | O31: 10 | P31: 0 | Q31: 0 | R31: 0 | S31: 0 | T31: 0 | U31: 0
F32: 3 | G32: 300 | J32: 0 | K32: 0 | L32: 120 | M32: 75 | N32: 45 | O32: 30 | P32: 15 | Q32: 0 | R32: 0 | S32: 0 | T32: 0 | U32: 0
F33: 4 | G33: 400 | J33: 0 | K33: 0 | L33: 0 | M33: 160 | N33: 100 | O33: 60 | P33: 40 | Q33: 20 | R33: 0 | S33: 0 | T33: 0 | U33: 0
F34: 5 | G34: 500 | J34: 0 | K34: 0 | L34: 0 | M34: 0 | N34: 200 | O34: 125 | P34: 75 | Q34: 50 | R34: 25 | S34: 0 | T34: 0 | U34: 0
F35: 6 | G35: 600 | J35: 0 | K35: 0 | L35: 0 | M35: 0 | N35: 0 | O35: 240 | P35: 150 | Q35: 90 | R35: 60 | S35: 30 | T35: 0 | U35: 0
F36: 7 | G36: 700 | J36: 0 | K36: 0 | L36: 0 | M36: 0 | N36: 0 | O36: 0 | P36: 280 | Q36: 175 | R36: 105 | S36: 70 | T36: 35 | U36: 0
F37: 8 | G37: 800 | J37: 0 | K37: 0 | L37: 0 | M37: 0 | N37: 0 | O37: 0 | P37: 0 | Q37: 320 | R37: 200 | S37: 120 | T37: 80 | U37: 40
F38: 9 | G38: 900 | J38: 0 | K38: 0 | L38: 0 | M38: 0 | N38: 0 | O38: 0 | P38: 0 | Q38: 0 | R38: 360 | S38: 225 | T38: 135 | U38: 90
F39: 10 | G39: 1000 | J39: 0 | K39: 0 | L39: 0 | M39: 0 | N39: 0 | O39: 0 | P39: 0 | Q39: 0 | R39: 0 | S39: 400 | T39: 250 | U39: 150
F40: 11 | G40: 1100 | J40: 0 | K40: 0 | L40: 0 | M40: 0 | N40: 0 | O40: 0 | P40: 0 | Q40: 0 | R40: 0 | S40: 0 | T40: 440 | U40: 275
F41: 12 | G41: 1200 | J41: 0 | K41: 0 | L41: 0 | M41: 0 | N41: 0 | O41: 0 | P41: 0 | Q41: 0 | R41: 0 | S41: 0 | T41: 0 | U41: 480
F42: Cash Receipts | J42: =SUM(J30:J41) -> 40 | K42: =SUM(K30:K41) -> 105 | L42: 185 | M42: 275 | N42: 370 | O42: 465 | P42: 560 | Q42: 655 | R42: 750 | S42: 845 | T42: 940 | U42: 1035
D44: Reverse Ticker Method
E46: Month Number | J46: =J12 -> 1 | K46: =K12 -> 2 | L46: 3 | M46: 4 | N46: 5 | O46: 6 | P46: 7 | Q46: 8 | R46: 9 | S46: 10 | T46: 11 | U46: 12
F48: Reverse Cash Receipt Profile | J48: =INDEX($J$16:$U$16,MAX($J$46:$U$46)-J$46+1) -> 0 | K48: 0 | L48: 0 | M48: 0 | N48: 0 | O48: 0 | P48: 0 | Q48: 0.05 | R48: 0.1 | S48: 0.15 | T48: 0.25 | U48: 0.4
F49: Forecast Sales Revenue | J49: =J14 -> 100 | K49: =K14 -> 200 | L49: 300 | M49: 400 | N49: 500 | O49: 600 | P49: 700 | Q49: 800 | R49: 900 | S49: 1000 | T49: 1100 | U49: 1200
F51: Cash Receipts | J51: =SUMPRODUCT(OFFSET($U$48,,,1,-J$46)*OFFSET($J$49,,,1,J$46)) -> 40 | K51: =SUMPRODUCT(OFFSET($U$48,,,1,-K$46)*OFFSET($J$49,,,1,K$46)) -> 105 | L51: 185 | M51: 275 | N51: 370 | O51: 465 | P51: 560 | Q51: 655 | R51: 750 | S51: 845 | T51: 940 | U51: 1035
D53: Control Account
E55: Month Number | J55: =J12 -> 1 | K55: =K12 -> 2 | L55: 3 | M55: 4 | N55: 5 | O55: 6 | P55: 7 | Q55: 8 | R55: 9 | S55: 10 | T55: 11 | U55: 12
F57: Opening Debtors | J57: =IF(J$55=1,,I61) -> 0 | K57: =IF(K$55=1,,J61) -> 60 | L57: 155 | M57: 270 | N57: 395 | O57: 525 | P57: 655 | Q57: 785 | R57: 915 | S57: 1045 | T57: 1175 | U57: 1305 | W57: ='Monthly Calcs Example'!X26 -> Prior BS
F58: Sales in Period | J58: =J14 -> 100 | K58: =K14 -> 200 | L58: 300 | M58: 400 | N58: 500 | O58: 600 | P58: 700 | Q58: 800 | R58: 900 | S58: 1000 | T58: 1100 | U58: 1200 | W58: ='Monthly Calcs Example'!X27 -> IS
F59: Bad Debts Written Off | J59: =-J21 -> 0 | K59: =-K21 -> 0 | L59: 0 | M59: 0 | N59: 0 | O59: -5 | P59: -10 | Q59: -15 | R59: -20 | S59: -25 | T59: -30 | U59: -35 | W59: ='Monthly Calcs Example'!X27 -> IS
F60: =F51 -> Cash Receipts | J60: =-J51 -> -40 | K60: =-K51 -> -105 | L60: -185 | M60: -275 | N60: -370 | O60: -465 | P60: -560 | Q60: -655 | R60: -750 | S60: -845 | T60: -940 | U60: -1035 | W60: ='Monthly Calcs Example'!X28 -> CFS
F61: Closing Debtors | J61: =SUM(J57:J60) -> 60 | K61: =SUM(K57:K60) -> 155 | L61: 270 | M61: 395 | N61: 525 | O61: 655 | P61: 785 | Q61: 915 | R61: 1045 | S61: 1175 | T61: 1305 | U61: 1435 | W61: ='Monthly Calcs Example'!X29 -> Current BS
